Service Area,Expense Type,Date,Transaction Number,Amount,Supplier
Parks And Gardens Capital,Cap Contractor Pmts,2010-05-10,5000077214,4040.0,R J Cook Ltd
Parks And Gardens Capital,Cap Contractor Pmts,2010-05-13,5000077973,2125.0,Redacted Personal Data
Parks And Gardens Capital,Cap Contractor Pmts,2010-05-17,5000078594,6495.0,Clifford J. Matthews Ltd
Parks And Gardens Capital,Professional Service,2010-06-28,5000086890,75000.0,The Great Outdoor Gym Company Ltd
Parks And Gardens Capital,Cap Contractor Pmts,2010-07-01,5000087735,4810.0,R J Cook Ltd
Parks And Gardens Capital,Operational Equipmen,2010-07-20,5105600967,1800.0,Redacted Personal Data
Parks And Gardens Capital,Grants To Ext Bodies,2010-07-28,5000093102,3500.0,The Great Outdoor Gym Company Ltd
Parks And Gardens Capital,Professional Service,2010-07-28,5000093103,71904.2,The Great Outdoor Gym Company Ltd
Parks And Gardens Capital,Operational Equipmen,2010-08-10,5105605036,3600.0,Redacted Personal Data
Parks And Gardens Capital,Cap Contractor Pmts,2010-08-23,5000097329,8320.0,Wicksteed Leisure Ltd
Parks And Gardens Capital,Professional Service,2010-08-23,5000097334,-71904.2,The Great Outdoor Gym Company Ltd
Parks And Gardens Capital,"Pl, Equip & Furn   C",2010-08-24,5000097550,71904.2,The Great Outdoor Gym Company Ltd
Parks And Gardens Capital,Cap Contractor Pmts,2010-09-15,5000101327,2700.0,Redacted Personal Data
Parks And Gardens Capital,Cap Contractor Pmts,2010-09-30,5000104150,2000.0,C N Services
Parks And Gardens Capital,Cap Contractor Pmts,2010-10-13,5000106369,-4940.0,Clifford J. Matthews Ltd
Parks And Gardens Capital,Cap Contractor Pmts,2010-10-15,5000107165,1200.0,C N Services
Parks And Gardens Capital,Cap Contractor Pmts,2010-10-27,5000109144,4792.67,Mcarthur Group Ltd
Parks And Gardens Capital,Cap Contractor Pmts,2010-11-01,5000109922,2550.0,C N Services
Parks And Gardens Capital,Cap Contractor Pmts,2010-11-01,5000109924,4107.0,R J Cook Ltd
Parks And Gardens Capital,Cap Contractor Pmts,2010-11-01,5000109923,1250.0,R J Cook Ltd
Parks And Gardens Capital,Cap Contractor Pmts,2010-11-03,5000110579,2060.0,Redacted Personal Data
Parks And Gardens Capital,Cap Contractor Pmts,2010-11-03,5000110578,2789.0,Lees & Co
Parks And Gardens Capital,Cap Contractor Pmts,2010-11-03,5000110577,625.0,Hillcroft Turf Supplies
Parks And Gardens Capital,Cap Contractor Pmts,2010-11-04,5000110805,3865.9,The Great Outdoor Gym Company Ltd
Parks And Gardens Capital,Cap Contractor Pmts,2010-11-08,5000111216,4940.0,Clifford J. Matthews Ltd
Parks And Gardens Capital,Cap Contractor Pmts,2010-11-11,5000111829,2420.0,Jfk Landscaping
Parks And Gardens Capital,Cap Contractor Pmts,2010-11-12,5000112140,850.0,R J Cook Ltd
Parks And Gardens Capital,"Pl, Equip & Furn   C",2010-11-22,5000113536,700.0,Nigel Earley Services
Parks And Gardens Capital,"Pl, Equip & Furn   C",2010-12-01,1900265726,2000.0,Sandown Town Council
Parks And Gardens Capital,Cap Contractor Pmts,2010-12-07,5000115857,4070.0,C N Services
Parks And Gardens Capital,"Pl, Equip & Furn   C",2010-12-07,5000115750,1075.0,Groundsell Contracting Ltd
Parks And Gardens Capital,"Pl, Equip & Furn   C",2010-12-08,5105632128,1601.2,Lees & Co
Parks And Gardens Capital,"Pl, Equip & Furn   C",2010-12-14,5000117231,3265.0,Easy Gate Ltd
Parks And Gardens Capital,"Pl, Equip & Furn   C",2010-12-20,5000118289,869.0,Redacted Personal Data
Parks And Gardens Capital,"Pl, Equip & Furn   C",2011-01-05,5000119588,1750.0,C N Services
Parks And Gardens Capital,"Pl, Equip & Furn   C",2011-01-20,5105639917,1075.0,Groundsell Contracting Ltd
Parks And Gardens Capital,"Pl, Equip & Furn   C",2011-01-20,5105639918,-1075.0,Groundsell Contracting Ltd
Parks And Gardens Capital,Cap Contractor Pmts,2011-01-21,5000122785,3865.9,The Great Outdoor Gym Company Ltd
Parks And Gardens Capital,"Pl, Equip & Furn   C",2011-01-24,5000122873,914.0,Groundsell Contracting Ltd
Parks And Gardens Capital,"Pl, Equip & Furn   C",2011-02-04,5000125173,840.0,C N Services
Parks And Gardens Capital,"Pl, Equip & Furn   C",2011-02-15,5000127025,4600.0,C N Services
Parks And Gardens Capital,"Pl, Equip & Furn   C",2011-02-18,5000127843,851.0,Groundsell Contracting Ltd
Parks And Gardens Capital,Cap Contractor Pmts,2011-02-25,5000129126,6560.0,Jfk Landscaping
Parks And Gardens Capital,Cap Contractor Pmts,2011-02-25,5000129128,2980.0,Jfk Landscaping
Parks And Gardens Capital,"Pl, Equip & Furn   C",2011-03-04,5000130300,948.3,Wicksteed Leisure Ltd
Parks And Gardens Capital,"Pl, Equip & Furn   C",2011-03-04,5000130283,680.87,Redacted Personal Data
Parks And Gardens Capital,Cap Contractor Pmts,2011-03-08,5000130783,850.0,C N Services
Parks And Gardens Capital,"Pl, Equip & Furn   C",2011-03-09,5000131115,522.45,Moreys
Parks And Gardens Capital,"Pl, Equip & Furn   C",2011-03-09,5000131105,812.0,Redacted Personal Data
Parks And Gardens Capital,"Pl, Equip & Furn   C",2011-03-09,5000131102,992.0,Redacted Personal Data
Parks And Gardens Capital,Cap Contractor Pmts,2011-03-16,5000132047,1050.0,Jfk Landscaping
Parks And Gardens Capital,"Pl, Equip & Furn   C",2011-03-16,5000132140,930.0,Groundsell Contracting Ltd
Parks And Gardens Capital,"Pl, Equip & Furn   C",2011-03-16,5000132137,1350.0,R J Cook Ltd
Parks And Gardens Capital,Cap Contractor Pmts,2011-03-18,5000132705,995.0,Islandwide Grounds Maintenance Ltd
Parks And Gardens Capital,Cap Contractor Pmts,2011-03-23,5000133330,1850.0,Jfk Landscaping
Parks And Gardens Capital,Cap Contractor Pmts,2011-03-28,5000134002,700.0,C N Services
Parks And Gardens Capital,Cap Contractor Pmts,2011-03-28,5000134001,1750.0,C N Services
Parks And Gardens Capital,"Pl, Equip & Furn   C",2011-03-29,5000134211,1000.0,R J Cook Ltd
Parks And Gardens Capital,Cap Contractor Pmts,2011-04-12,5000136575,2962.25,Mcarthur Group Ltd
Parks And Gardens Capital,Cap Contractor Pmts,2011-04-12,5000136576,2787.49,Mcarthur Group Ltd
Parks And Gardens Capital,Cap Contractor Pmts,2011-04-12,5000136598,2568.0,Mcarthur Group Ltd
Parks And Gardens Capital,Cap Contractor Pmts,2011-04-12,5000136577,1486.5,Mcarthur Group Ltd
Parks And Gardens Capital,Cap Contractor Pmts,2011-04-12,5000136597,569.1,Mcarthur Group Ltd
Parks And Gardens Capital,Cap Contractor Pmts,2011-04-12,5000136574,1980.0,Jfk Landscaping
Parks And Gardens Capital,"Pl, Equip & Furn   C",2011-04-12,5000136665,1600.0,Colin Newnham Svcs  Blocked
Parks And Gardens Capital,"Pl, Equip & Furn   C",2011-04-14,5000137195,1990.0,Pentalver Transport Ltd
Parks And Gardens Capital,Cap Contractor Pmts,2011-04-15,5000137383,3485.0,C N Services
Parks And Gardens Capital,Cap Contractor Pmts,2011-04-15,5000137382,2415.0,Jfk Landscaping
Parks And Gardens Capital,"Pl, Equip & Furn   C",2011-04-28,5000139038,10000.0,Wicksteed Leisure Ltd
Parks And Gardens Capital,"Pl, Equip & Furn   C",2011-04-28,5000139043,3055.5,Wicksteed Leisure Ltd
Parks And Gardens Capital,Cap Contractor Pmts,2011-05-04,5000139523,13148.97,Graham Attrill Civil Engineering Ld
Parks And Gardens Capital,"Pl, Equip & Furn   C",2011-05-05,5000139821,-1600.0,Colin Newnham Svcs  Blocked
Parks And Gardens Capital,"Pl, Equip & Furn   C",2011-05-09,5000140112,1600.0,C N Services
Parks And Gardens Capital,"Pl, Equip & Furn   C",2011-05-18,5000141775,5841.0,Wicksteed Leisure Ltd
Parks And Gardens Capital,"Pl, Equip & Furn   C",2011-05-18,5000141774,4812.5,Wicksteed Leisure Ltd
Parks And Gardens Capital,"Pl, Equip & Furn   C",2011-05-18,5105664138,-2271.5,Wicksteed Leisure Ltd
Parks And Gardens Capital,"Pl, Equip & Furn   C",2011-05-20,5000142285,2855.0,R J Cook Ltd
Parks And Gardens Capital,"Pl, Equip & Furn   C",2011-05-20,5000142282,510.0,Groundsell Contracting Ltd
Parks And Gardens Capital,Cap Contractor Pmts,2011-05-23,5000142573,15260.0,British Flooring Contract
Parks And Gardens Capital,Cap Contractor Pmts,2011-05-24,5000142646,1000.0,C N Services
Parks And Gardens Capital,"Pl, Equip & Furn   C",2011-05-25,5400001131,2271.5,Wicksteed Leisure Ltd
Parks And Gardens Capital,Ext Design & Superv,2011-05-26,5000143088,2000.0,Andros Engineering
Parks And Gardens Capital,Ext Design & Superv,2011-06-02,5000143939,1199.28,Sse Power Distribution
Parks And Gardens Capital,Ext Design & Superv,2011-06-03,1900351195,1199.28,Sse Power Distribution
Parks And Gardens Capital,Operational Equipmen,2011-06-06,5105667625,1800.0,Redacted Personal Data
Parks And Gardens Capital,Ext Design & Superv,2011-06-10,5000145084,606.42,Sse Power Distribution
Parks And Gardens Capital,Ext Design & Superv,2011-06-16,5000146031,550.0,Ermc Ltd
Parks And Gardens Capital,Ext Design & Superv,2011-06-16,5000146029,550.0,Ermc Ltd
Parks And Gardens Capital,Cap Contractor Pmts,2011-07-04,5000148184,2500.0,C N Services
Parks And Gardens Capital,Ext Design & Superv,2011-07-07,5000148702,1440.0,Mansell Construction Services Ltd
Parks And Gardens Capital,Ext Design & Superv,2011-07-12,5000149507,-1440.0,Mansell Construction Services Ltd
Parks And Gardens Capital,"Pl, Equip & Furn   C",2011-07-15,5000150450,936.5,Clifford J. Matthews Ltd
Parks And Gardens Capital,Ext Design & Superv,2011-08-11,5000153668,10436.5,Mcm Construction Ltd
Parks And Gardens Capital,Cap Contractor Pmts,2011-09-07,5000157351,1440.0,Mansell Construction Svcs Ltd [Sb]
Parks And Gardens Capital,Cap Contractor Pmts,2011-09-07,5000157194,3900.0,Redacted Personal Data
Parks And Gardens Capital,Ext Design & Superv,2011-09-13,5000158416,33209.0,Blakedown Sport And Play Ltd
Parks And Gardens Capital,Cap Contractor Pmts,2011-09-27,5000160340,1250.0,Wsm Associates Ltd
Parks And Gardens Capital,"Pl, Equip & Furn   C",2011-09-29,5000160660,24710.0,Mcavoy
Parks And Gardens Capital,"Pl, Equip & Furn   C",2011-09-29,5000160660,6250.0,Mcavoy
Parks And Gardens Capital,Eligible Supp And Sv,2011-09-30,5000160746,740.0,Groundsell Contracting Ltd
Parks And Gardens Capital,Ext Design & Superv,2011-10-04,5000161047,-33209.0,Blakedown Sport & Play   Blocked
Parks And Gardens Capital,Cap Contractor Pmts,2011-10-05,5000161243,33209.0,Blakedown Sport And Play Ltd
Parks And Gardens Capital,Ext Design & Superv,2011-10-11,5000162529,-1199.28,Sse Power Distribution
Parks And Gardens Capital,Cap Contractor Pmts,2011-10-13,5000163045,33209.0,Blakedown Sport And Play Ltd
Parks And Gardens Capital,Ext Design & Superv,2011-11-01,5000164559,745.5,Mcm Construction Ltd
Parks And Gardens Capital,Cap Contractor Pmts,2011-11-14,1900425560,62625.0,Mcm Construction Ltd
Parks And Gardens Capital,Cap Contractor Pmts,2011-11-16,5000167413,1750.0,Sports Labs Ltd
Parks And Gardens Capital,Cap Contractor Pmts,2011-11-17,1900426010,997.28,Mcm Construction Ltd
Parks And Gardens Capital,Cap Contractor Pmts,2011-12-01,5000169616,5790.0,Wsm Associates Ltd
Parks And Gardens Capital,Cap Contractor Pmts,2011-12-08,5000170717,3055.0,Mcm Construction Ltd
Parks And Gardens Capital,Cap Contractor Pmts,2011-12-13,5000172035,50361.0,Mcm Construction Ltd
Parks And Gardens Capital,Ext Design & Superv,2011-12-20,5000172791,732.09,Mansell Construction Svcs Ltd [Sb]
Parks And Gardens Capital,Payment To Contractors   Capital,2012-01-04,5000173655,-33209.0,Blakedown Sport And Play Ltd
Parks And Gardens Capital,External Design And Supervision Fees,2012-02-22,5000181714,-550.0,Ermc Ltd
